[Event "Early-Titled-Tuesday-Blitz-September-12-2023"]
[Site "Chess.com"]
[Date "2023.09.12"]
[Round "5"]
[White "FabianoCaruana"]
[Black "FGHSMN"]
[Result "1/2-1/2"]
[WhiteElo "3066"]
[BlackElo "2907"]
[TimeControl "180+1"]
[EndTime "8:56:04 PDT"]
[Termination "Game drawn - insufficient material"]

1. c4 {[%clk 0:03:00.9]} 1... c6 {[%clk 0:02:38.4]} 2. d4 {[%clk 0:02:59]} 2...
d5 {[%clk 0:02:38.5]} 3. Nf3 {[%clk 0:02:59.7]} 3... Nf6 {[%clk 0:02:38.7]} 4.
e3 {[%clk 0:03:00.1]} 4... Bf5 {[%clk 0:02:38.8]} 5. Nc3 {[%clk 0:03:00.5]} 5...
e6 {[%clk 0:02:38.5]} 6. Nh4 {[%clk 0:03:00.8]} 6... Be4 {[%clk 0:02:38.5]} 7.
f3 {[%clk 0:03:01.2]} 7... Bg6 {[%clk 0:02:39.3]} 8. Bd2 {[%clk 0:03:01.8]} 8...
Be7 {[%clk 0:02:36.5]} 9. Nxg6 {[%clk 0:03:01.7]} 9... hxg6 {[%clk 0:02:36.5]}
10. Qc2 {[%clk 0:03:02.3]} 10... dxc4 {[%clk 0:02:27.1]} 11. Bxc4 {[%clk
0:03:01.7]} 11... b5 {[%clk 0:02:27.7]} 12. Bd3 {[%clk 0:02:58.8]} 12... a6
{[%clk 0:02:28.2]} 13. a4 {[%clk 0:02:57.3]} 13... Nbd7 {[%clk 0:02:26]} 14. Ne4
{[%clk 0:02:51.5]} 14... Rc8 {[%clk 0:02:06.7]} 15. Nxf6+ {[%clk 0:02:39.2]}
15... Nxf6 {[%clk 0:02:04.8]} 16. axb5 {[%clk 0:02:36.6]} 16... axb5 {[%clk
0:01:59.7]} 17. O-O {[%clk 0:02:34.2]} 17... Bd6 {[%clk 0:01:42.6]} 18. f4
{[%clk 0:02:26.8]} 18... g5 {[%clk 0:01:40.1]} 19. Ra6 {[%clk 0:02:13.3]} 19...
gxf4 {[%clk 0:01:31.1]} 20. exf4 {[%clk 0:01:56.5]} 20... O-O {[%clk 0:00:51.3]}
21. Rxc6 {[%clk 0:01:41.5]} 21... Bc5 {[%clk 0:00:46.5]} 22. dxc5 {[%clk
0:01:05.3]} 22... Rxc6 {[%clk 0:00:46.2]} 23. b4 {[%clk 0:01:06]} 23... Qd4+
{[%clk 0:00:40.4]} 24. Kh1 {[%clk 0:01:06.2]} 24... Nd5 {[%clk 0:00:31]} 25.
Bxb5 {[%clk 0:01:00.3]} 25... Rcc8 {[%clk 0:00:31.5]} 26. Bc4 {[%clk 0:00:57.5]}
26... Rfd8 {[%clk 0:00:27.4]} 27. h3 {[%clk 0:00:33.7]} 27... Nf6 {[%clk
0:00:21.1]} 28. Ba6 {[%clk 0:00:28.5]} 28... Rc6 {[%clk 0:00:17.1]} 29. Bc3
{[%clk 0:00:26.8]} 29... Qe4 {[%clk 0:00:15.8]} 30. Qxe4 {[%clk 0:00:18.1]}
30... Nxe4 {[%clk 0:00:16.7]} 31. Bb7 {[%clk 0:00:18.6]} 31... Ng3+ {[%clk
0:00:14.6]} 32. Kg1 {[%clk 0:00:19.3]} 32... Rc7 {[%clk 0:00:13.5]} 33. Bf3
{[%clk 0:00:17.3]} 33... Nxf1 {[%clk 0:00:13.4]} 34. Kxf1 {[%clk 0:00:18.2]}
34... Rd3 {[%clk 0:00:11.3]} 35. Be5 {[%clk 0:00:18]} 35... Rc8 {[%clk
0:00:11.8]} 36. Bb7 {[%clk 0:00:15.6]} 36... Rf8 {[%clk 0:00:09.1]} 37. c6
{[%clk 0:00:15.7]} 37... f6 {[%clk 0:00:07.1]} 38. Bc7 {[%clk 0:00:15.8]} 38...
Rf7 {[%clk 0:00:04.4]} 39. Bb6 {[%clk 0:00:15]} 39... Rd6 {[%clk 0:00:04.7]} 40.
Bc5 {[%clk 0:00:12.3]} 40... Rd1+ {[%clk 0:00:04.3]} 41. Kf2 {[%clk 0:00:11.9]}
41... Rc1 {[%clk 0:00:05.1]} 42. Bd6 {[%clk 0:00:10.2]} 42... Rb1 {[%clk
0:00:03.9]} 43. Ke3 {[%clk 0:00:08.8]} 43... e5 {[%clk 0:00:03.4]} 44. Ke4
{[%clk 0:00:06.2]} 44... exf4 {[%clk 0:00:03.3]} 45. Bxf4 {[%clk 0:00:05.4]}
45... Rxb4+ {[%clk 0:00:03.5]} 46. Kf5 {[%clk 0:00:06.1]} 46... Rbxb7 {[%clk
0:00:03.7]} 47. cxb7 {[%clk 0:00:06.7]} 47... Rxb7 {[%clk 0:00:04.3]} 48. g4
{[%clk 0:00:07]} 48... Kf7 {[%clk 0:00:04.8]} 49. Ke4 {[%clk 0:00:07.4]} 49...
Rb5 {[%clk 0:00:05.4]} 50. h4 {[%clk 0:00:07.3]} 50... Ke6 {[%clk 0:00:06.1]}
51. h5 {[%clk 0:00:07.5]} 51... Rb4+ {[%clk 0:00:06.7]} 52. Kf3 {[%clk
0:00:07.9]} 52... Rb3+ {[%clk 0:00:07]} 53. Kg2 {[%clk 0:00:08.2]} 53... Kd5
{[%clk 0:00:06.6]} 54. h6 {[%clk 0:00:08.5]} 54... Rb2+ {[%clk 0:00:03.4]} 55.
Kh3 {[%clk 0:00:06.9]} 55... gxh6 {[%clk 0:00:02.9]} 56. Bxh6 {[%clk 0:00:07.8]}
56... Ke4 {[%clk 0:00:02.4]} 57. Bg7 {[%clk 0:00:08.1]} 57... Rf2 {[%clk
0:00:02.6]} 58. Kg3 {[%clk 0:00:08.1]} 58... Rf3+ {[%clk 0:00:02.9]} 59. Kh4
{[%clk 0:00:08.7]} 59... Rf4 {[%clk 0:00:03.1]} 60. Kh5 {[%clk 0:00:08.6]} 60...
Ke5 {[%clk 0:00:03.5]} 61. g5 {[%clk 0:00:07.5]} 61... Rf5 {[%clk 0:00:03.7]}
62. Bxf6+ {[%clk 0:00:07.7]} 62... Rxf6 {[%clk 0:00:04.5]} 63. gxf6 {[%clk
0:00:08]} 63... Kxf6 {[%clk 0:00:05.4]} 1/2-1/2

[Event "Early-Titled-Tuesday-Blitz-September-12-2023"]
[Site "Chess.com"]
[Date "2023.09.12"]
[Round "5"]
[White "lluiss"]
[Black "Der_Balak_3Halak"]
[Result "1-0"]
[WhiteElo "2186"]
[BlackElo "2403"]
[TimeControl "180+1"]
[EndTime "8:56:09 PDT"]
[Termination "lluiss won by checkmate"]

1. Nf3 {[%clk 0:03:00.9]} 1... Nf6 {[%clk 0:02:58.6]} 2. d4 {[%clk 0:03:00]}
2... g6 {[%clk 0:02:59.5]} 3. g3 {[%clk 0:02:59.3]} 3... Bg7 {[%clk 0:03:00.4]}
4. Bg2 {[%clk 0:02:59.7]} 4... d5 {[%clk 0:02:41.6]} 5. O-O {[%clk 0:02:59.3]}
5... c6 {[%clk 0:02:42.5]} 6. c4 {[%clk 0:02:58.4]} 6... O-O {[%clk 0:02:40.3]}
7. cxd5 {[%clk 0:02:58]} 7... cxd5 {[%clk 0:02:41.2]} 8. Nc3 {[%clk 0:02:58.1]}
8... Nc6 {[%clk 0:02:39.3]} 9. Ne5 {[%clk 0:02:57.6]} 9... e6 {[%clk 0:02:37.4]}
10. Nxc6 {[%clk 0:02:57.3]} 10... bxc6 {[%clk 0:02:37.5]} 11. Na4 {[%clk
0:02:58]} 11... Nd7 {[%clk 0:02:31.7]} 12. Be3 {[%clk 0:02:58]} 12... e5 {[%clk
0:02:29.5]} 13. dxe5 {[%clk 0:02:53.7]} 13... Nxe5 {[%clk 0:02:27.7]} 14. b3
{[%clk 0:02:53.9]} 14... Bf5 {[%clk 0:02:05.7]} 15. Rc1 {[%clk 0:02:50.6]} 15...
Qf6 {[%clk 0:01:48.8]} 16. Qd2 {[%clk 0:02:30.9]} 16... Nd7 {[%clk 0:01:26.8]}
17. Rfd1 {[%clk 0:02:15.9]} 17... Rfc8 {[%clk 0:01:17.7]} 18. Bd4 {[%clk
0:02:07.6]} 18... Qxd4 {[%clk 0:01:12.8]} 19. Qxd4 {[%clk 0:02:08.5]} 19... Bxd4
{[%clk 0:01:13]} 20. Rxd4 {[%clk 0:02:08.2]} 20... Kf8 {[%clk 0:00:34.6]} 21. e4
{[%clk 0:01:46.2]} 21... dxe4 {[%clk 0:00:33.4]} 22. Bxe4 {[%clk 0:01:44.4]}
22... c5 {[%clk 0:00:26.6]} 23. Bxa8 {[%clk 0:01:20.5]} 23... Rxa8 {[%clk
0:00:27.5]} 24. Nxc5 {[%clk 0:01:17.7]} 24... Ne5 {[%clk 0:00:23.6]} 25. Rd5
{[%clk 0:00:55.3]} 25... Nf3+ {[%clk 0:00:17]} 26. Kg2 {[%clk 0:00:55]} 26...
Ng5 {[%clk 0:00:17]} 27. f3 {[%clk 0:00:50.1]} 27... Kg7 {[%clk 0:00:13.5]} 28.
Rcd1 {[%clk 0:00:48.9]} 28... Rc8 {[%clk 0:00:12.8]} 29. h4 {[%clk 0:00:43.5]}
29... Ne6 {[%clk 0:00:10.8]} 30. Nxe6+ {[%clk 0:00:43.2]} 30... Bxe6 {[%clk
0:00:11.7]} 31. Ra5 {[%clk 0:00:41.9]} 31... Rc2+ {[%clk 0:00:10.5]} 32. Kg1
{[%clk 0:00:42]} 32... Bh3 {[%clk 0:00:10.1]} 33. Rxa7 {[%clk 0:00:37.2]} 33...
Rg2+ {[%clk 0:00:09.6]} 34. Kf1 {[%clk 0:00:37.3]} 34... Rxg3+ {[%clk
0:00:10.2]} 35. Kf2 {[%clk 0:00:35.7]} 35... Rg2+ {[%clk 0:00:10.5]} 36. Ke3
{[%clk 0:00:35.8]} 36... Bf5 {[%clk 0:00:09.9]} 37. Rd2 {[%clk 0:00:26.4]} 37...
Rg1 {[%clk 0:00:09.7]} 38. Rb2 {[%clk 0:00:26.2]} 38... Re1+ {[%clk 0:00:09.8]}
39. Kf2 {[%clk 0:00:25.7]} 39... Rh1 {[%clk 0:00:10.4]} 40. Kg2 {[%clk
0:00:25.7]} 40... Rxh4 {[%clk 0:00:10.2]} 41. b4 {[%clk 0:00:25.5]} 41... Bh3+
{[%clk 0:00:06]} 42. Kg3 {[%clk 0:00:24.4]} 42... g5 {[%clk 0:00:06.6]} 43. b5
{[%clk 0:00:24.2]} 43... Be6 {[%clk 0:00:07.2]} 44. b6 {[%clk 0:00:22.7]} 44...
Rh3+ {[%clk 0:00:05.9]} 45. Kg2 {[%clk 0:00:21.8]} 45... g4 {[%clk 0:00:06.6]}
46. fxg4 {[%clk 0:00:19.5]} 46... Rd3 {[%clk 0:00:06.1]} 47. b7 {[%clk
0:00:18.9]} 47... Bd5+ {[%clk 0:00:05.3]} 48. Kf2 {[%clk 0:00:17.5]} 48... Rf3+
{[%clk 0:00:05.4]} 49. Ke2 {[%clk 0:00:17]} 49... Bxb7 {[%clk 0:00:06.1]} 50.
Rbxb7 {[%clk 0:00:15.7]} 50... Rf4 {[%clk 0:00:07]} 51. Rxf7+ {[%clk 0:00:15.2]}
51... Rxf7 {[%clk 0:00:07.1]} 52. Rxf7+ {[%clk 0:00:14.9]} 52... Kxf7 {[%clk
0:00:08]} 53. Kf3 {[%clk 0:00:15.4]} 53... Ke6 {[%clk 0:00:08.9]} 54. Kf4 {[%clk
0:00:15.7]} 54... Kf6 {[%clk 0:00:08.4]} 55. a4 {[%clk 0:00:14.7]} 55... Ke6
{[%clk 0:00:08.9]} 56. a5 {[%clk 0:00:14.7]} 56... Kd5 {[%clk 0:00:09.3]} 57.
Kg5 {[%clk 0:00:14.9]} 57... Kc5 {[%clk 0:00:09.1]} 58. Kh6 {[%clk 0:00:14.8]}
58... Kb5 {[%clk 0:00:09.5]} 59. Kxh7 {[%clk 0:00:15.1]} 59... Kxa5 {[%clk
0:00:10.4]} 60. g5 {[%clk 0:00:15.6]} 60... Kb5 {[%clk 0:00:11.3]} 61. g6 {[%clk
0:00:16.5]} 61... Kc5 {[%clk 0:00:12.2]} 62. g7 {[%clk 0:00:17.4]} 62... Kd5
{[%clk 0:00:13.1]} 63. g8=Q+ {[%clk 0:00:18.2]} 63... Ke5 {[%clk 0:00:14]} 64.
Qg7+ {[%clk 0:00:18.3]} 64... Kf5 {[%clk 0:00:14]} 65. Qg6+ {[%clk 0:00:17.8]}
65... Kf4 {[%clk 0:00:14.9]} 66. Kh6 {[%clk 0:00:17.2]} 66... Ke5 {[%clk
0:00:15.8]} 67. Qf7 {[%clk 0:00:16.4]} 67... Ke4 {[%clk 0:00:16]} 68. Qf6 {[%clk
0:00:16.6]} 68... Kd5 {[%clk 0:00:16.8]} 69. Qe7 {[%clk 0:00:15.7]} 69... Kc4
{[%clk 0:00:17.7]} 70. Qd6 {[%clk 0:00:15.6]} 70... Kb5 {[%clk 0:00:17.6]} 71.
Qc7 {[%clk 0:00:15.2]} 71... Ka6 {[%clk 0:00:18]} 72. Qb8 {[%clk 0:00:15.1]}
72... Ka5 {[%clk 0:00:18.7]} 73. Kg5 {[%clk 0:00:15.6]} 73... Ka4 {[%clk
0:00:19.6]} 74. Kf4 {[%clk 0:00:16.4]} 74... Ka3 {[%clk 0:00:20]} 75. Ke3 {[%clk
0:00:17.3]} 75... Ka4 {[%clk 0:00:20.9]} 76. Kd2 {[%clk 0:00:17.8]} 76... Ka5
{[%clk 0:00:21.8]} 77. Kc3 {[%clk 0:00:18.3]} 77... Ka6 {[%clk 0:00:22.7]} 78.
Kc4 {[%clk 0:00:18.6]} 78... Ka5 {[%clk 0:00:23.2]} 79. Qb5# {[%clk 0:00:18.9]}
1-0

[Event "Early-Titled-Tuesday-Blitz-September-12-2023"]
[Site "Chess.com"]
[Date "2023.09.12"]
[Round "5"]
[White "ChainedDowntohell"]
[Black "KatakuriDono"]
[Result "0-1"]
[WhiteElo "2493"]
[BlackElo "2333"]
[TimeControl "180+1"]
[EndTime "8:56:12 PDT"]
[Termination "KatakuriDono won by checkmate"]

1. a3 {[%clk 0:03:00.9]} 1... e5 {[%clk 0:02:57.7]} 2. c4 {[%clk 0:02:57.3]}
2... Nf6 {[%clk 0:02:56.2]} 3. d3 {[%clk 0:02:46.5]} 3... d5 {[%clk 0:02:54.8]}
4. cxd5 {[%clk 0:02:39.7]} 4... Nxd5 {[%clk 0:02:55.7]} 5. Nf3 {[%clk
0:02:27.8]} 5... Nc6 {[%clk 0:02:54.3]} 6. e4 {[%clk 0:02:25.1]} 6... Nf6 {[%clk
0:02:52.4]} 7. Be2 {[%clk 0:02:24]} 7... Be7 {[%clk 0:02:51.8]} 8. Be3 {[%clk
0:02:23.6]} 8... O-O {[%clk 0:02:50.5]} 9. h3 {[%clk 0:02:19.9]} 9... h6 {[%clk
0:02:50.4]} 10. Nbd2 {[%clk 0:02:18.8]} 10... Be6 {[%clk 0:02:50.3]} 11. Qc2
{[%clk 0:02:16.1]} 11... Qd7 {[%clk 0:02:46.2]} 12. O-O {[%clk 0:02:15.3]} 12...
Rad8 {[%clk 0:02:45.3]} 13. b4 {[%clk 0:02:13.3]} 13... a6 {[%clk 0:02:44.6]}
14. Rfc1 {[%clk 0:02:07.1]} 14... Bd6 {[%clk 0:02:30.8]} 15. Nb3 {[%clk
0:01:56.2]} 15... Qe7 {[%clk 0:02:11.3]} 16. Nc5 {[%clk 0:01:50.5]} 16... Bc8
{[%clk 0:02:10.7]} 17. Rab1 {[%clk 0:01:49.9]} 17... Rfe8 {[%clk 0:02:02.4]} 18.
Nxa6 {[%clk 0:01:43.8]} 18... Nd4 {[%clk 0:01:50.9]} 19. Bxd4 {[%clk 0:01:41.9]}
19... bxa6 {[%clk 0:01:42.3]} 20. Be3 {[%clk 0:01:31.4]} 20... a5 {[%clk
0:01:38]} 21. bxa5 {[%clk 0:01:24.5]} 21... Bxa3 {[%clk 0:01:37.3]} 22. Rd1
{[%clk 0:01:24.4]} 22... Ba6 {[%clk 0:01:30.1]} 23. Nd2 {[%clk 0:01:10]} 23...
Bb4 {[%clk 0:01:07.2]} 24. Nc4 {[%clk 0:00:53.5]} 24... Bxc4 {[%clk 0:00:56.9]}
25. Qxc4 {[%clk 0:00:48.1]} 25... Bxa5 {[%clk 0:00:57.2]} 26. Rb7 {[%clk
0:00:41.5]} 26... Qd6 {[%clk 0:00:47]} 27. Rdb1 {[%clk 0:00:32.6]} 27... Ra8
{[%clk 0:00:34.8]} 28. R1b5 {[%clk 0:00:23.6]} 28... Nd7 {[%clk 0:00:30.8]} 29.
Rd5 {[%clk 0:00:20.1]} 29... Qe7 {[%clk 0:00:26.6]} 30. Qb5 {[%clk 0:00:09.4]}
30... Nb6 {[%clk 0:00:22.1]} 31. Rc5 {[%clk 0:00:04.6]} 31... Qd7 {[%clk
0:00:15.9]} 32. Qxd7 {[%clk 0:00:04.4]} 32... Nxd7 {[%clk 0:00:16.4]} 33. Rc1
{[%clk 0:00:02.4]} 33... Reb8 {[%clk 0:00:13.4]} 34. Rxb8+ {[%clk 0:00:02]}
34... Rxb8 {[%clk 0:00:14.3]} 35. Bg4 {[%clk 0:00:01.5]} 35... Nf6 {[%clk
0:00:14.4]} 36. Bf5 {[%clk 0:00:01.7]} 36... Bb6 {[%clk 0:00:14.5]} 37. Bg4
{[%clk 0:00:02]} 37... Bxe3 {[%clk 0:00:14.2]} 38. fxe3 {[%clk 0:00:02.9]} 38...
Rb7 {[%clk 0:00:13.7]} 39. Bf3 {[%clk 0:00:02.9]} 39... g6 {[%clk 0:00:14]} 40.
Rc3 {[%clk 0:00:03.4]} 40... Nd7 {[%clk 0:00:14.2]} 41. Rc6 {[%clk 0:00:03.1]}
41... Nb8 {[%clk 0:00:13.3]} 42. Rc5 {[%clk 0:00:03]} 42... c6 {[%clk
0:00:13.8]} 43. Rxe5 {[%clk 0:00:03.3]} 43... Kg7 {[%clk 0:00:12.2]} 44. Ra5
{[%clk 0:00:03.8]} 44... Rc7 {[%clk 0:00:12.4]} 45. Kf2 {[%clk 0:00:04.2]} 45...
c5 {[%clk 0:00:12.4]} 46. Ra4 {[%clk 0:00:04.7]} 46... Nc6 {[%clk 0:00:12.5]}
47. Be2 {[%clk 0:00:04]} 47... Ne5 {[%clk 0:00:11.2]} 48. Kg3 {[%clk 0:00:03.1]}
48... h5 {[%clk 0:00:11.6]} 49. Kf2 {[%clk 0:00:03]} 49... Nd7 {[%clk
0:00:11.8]} 50. Rc4 {[%clk 0:00:02.1]} 50... Ne5 {[%clk 0:00:11.9]} 51. Rc3
{[%clk 0:00:02.4]} 51... Rc8 {[%clk 0:00:11.6]} 52. d4 {[%clk 0:00:02.7]} 52...
Nd7 {[%clk 0:00:09.8]} 53. Bb5 {[%clk 0:00:02.8]} 53... Nb6 {[%clk 0:00:06.3]}
54. Rxc5 {[%clk 0:00:02.7]} 54... Rb8 {[%clk 0:00:04]} 55. Bd3 {[%clk
0:00:02.2]} 55... Nd7 {[%clk 0:00:04]} 56. Rc3 {[%clk 0:00:02.1]} 56... Nf6
{[%clk 0:00:04.5]} 57. Kf3 {[%clk 0:00:02.1]} 57... Rb2 {[%clk 0:00:05]} 58. e5
{[%clk 0:00:02.1]} 58... Nh7 {[%clk 0:00:05.1]} 59. Rc7 {[%clk 0:00:02]} 59...
Ng5+ {[%clk 0:00:05.2]} 60. Kg3 {[%clk 0:00:02]} 60... h4+ {[%clk 0:00:04.8]}
61. Kxh4 {[%clk 0:00:01.5]} 61... Rxg2 {[%clk 0:00:05.4]} 62. Be4 {[%clk
0:00:01.7]} 62... Nxe4 {[%clk 0:00:05.3]} 63. e6 {[%clk 0:00:02]} 63... g5+
{[%clk 0:00:05.3]} 64. Kh5 {[%clk 0:00:02.5]} 64... Nf6# {[%clk 0:00:05.8]} 0-1

[Event "Early-Titled-Tuesday-Blitz-September-12-2023"]
[Site "Chess.com"]
[Date "2023.09.12"]
[Round "5"]
[White "Dewarfd"]
[Black "Gauravthegm"]
[Result "0-1"]
[WhiteElo "2145"]
[BlackElo "2416"]
[TimeControl "180+1"]
[EndTime "8:56:12 PDT"]
[Termination "Gauravthegm won by checkmate"]

1. d4 {[%clk 0:02:59.9]} 1... Nf6 {[%clk 0:03:00]} 2. e3 {[%clk 0:02:58]} 2...
d5 {[%clk 0:02:58.5]} 3. Nf3 {[%clk 0:02:57.3]} 3... c5 {[%clk 0:02:58.7]} 4.
dxc5 {[%clk 0:02:56.8]} 4... e6 {[%clk 0:02:55.1]} 5. c4 {[%clk 0:02:55.8]} 5...
Bxc5 {[%clk 0:02:53.2]} 6. cxd5 {[%clk 0:02:55.6]} 6... Qxd5 {[%clk 0:02:51.2]}
7. Nbd2 {[%clk 0:02:54.4]} 7... O-O {[%clk 0:02:48.7]} 8. Bc4 {[%clk 0:02:53.8]}
8... Qd8 {[%clk 0:02:45.6]} 9. O-O {[%clk 0:02:53.1]} 9... a6 {[%clk 0:02:44.2]}
10. a3 {[%clk 0:02:52.7]} 10... b5 {[%clk 0:02:43.9]} 11. Be2 {[%clk 0:02:52.1]}
11... Bb7 {[%clk 0:02:39.6]} 12. b4 {[%clk 0:02:51.1]} 12... Be7 {[%clk
0:02:35.8]} 13. Bb2 {[%clk 0:02:50.4]} 13... Nbd7 {[%clk 0:02:20.4]} 14. Rc1
{[%clk 0:02:35.2]} 14... Nb6 {[%clk 0:02:17.5]} 15. Bd4 {[%clk 0:02:17.9]} 15...
Rc8 {[%clk 0:02:02.3]} 16. Rxc8 {[%clk 0:02:13.8]} 16... Nxc8 {[%clk 0:02:02.4]}
17. Qa1 {[%clk 0:02:13.2]} 17... Nd6 {[%clk 0:01:52.3]} 18. Rc1 {[%clk
0:02:11.6]} 18... Nde4 {[%clk 0:01:44.7]} 19. Nxe4 {[%clk 0:02:10.9]} 19... Bxe4
{[%clk 0:01:44.8]} 20. Ne5 {[%clk 0:02:01.4]} 20... Qa8 {[%clk 0:01:23.2]} 21.
Bf3 {[%clk 0:01:57.7]} 21... Bxf3 {[%clk 0:01:23.2]} 22. Nxf3 {[%clk 0:01:57.3]}
22... Qb7 {[%clk 0:01:12.6]} 23. h3 {[%clk 0:01:49.6]} 23... h6 {[%clk
0:01:11.2]} 24. Be5 {[%clk 0:01:44.3]} 24... Rc8 {[%clk 0:01:09.4]} 25. Rc3
{[%clk 0:01:38.8]} 25... Ne4 {[%clk 0:00:35]} 26. Rxc8+ {[%clk 0:01:35.2]} 26...
Qxc8 {[%clk 0:00:35.9]} 27. Qb1 {[%clk 0:01:21.4]} 27... Qc4 {[%clk 0:00:28.9]}
28. Bd4 {[%clk 0:01:07.1]} 28... Nc3 {[%clk 0:00:23.6]} 29. Qe1 {[%clk
0:00:52.7]} 29... Ne2+ {[%clk 0:00:21.9]} 30. Kh1 {[%clk 0:00:50.1]} 30... Nxd4
{[%clk 0:00:21.5]} 31. exd4 {[%clk 0:00:42.6]} 31... Bf6 {[%clk 0:00:20.9]} 32.
Qe4 {[%clk 0:00:39.8]} 32... Qc1+ {[%clk 0:00:20.3]} 33. Kh2 {[%clk 0:00:39.5]}
33... Qxa3 {[%clk 0:00:19.2]} 34. Qa8+ {[%clk 0:00:35.4]} 34... Kh7 {[%clk
0:00:19]} 35. Qb7 {[%clk 0:00:33.5]} 35... Qxb4 {[%clk 0:00:14.5]} 36. Qxf7
{[%clk 0:00:33.1]} 36... Qd6+ {[%clk 0:00:12.1]} 37. Kg1 {[%clk 0:00:25.6]}
37... b4 {[%clk 0:00:12.1]} 38. Qb7 {[%clk 0:00:22.8]} 38... a5 {[%clk
0:00:09.9]} 39. g3 {[%clk 0:00:21]} 39... a4 {[%clk 0:00:08.3]} 40. Qe4+ {[%clk
0:00:18.8]} 40... g6 {[%clk 0:00:07.5]} 41. h4 {[%clk 0:00:17.5]} 41... h5
{[%clk 0:00:03.5]} 42. Qb7+ {[%clk 0:00:14]} 42... Qe7 {[%clk 0:00:03.9]} 43.
Qb5 {[%clk 0:00:12.9]} 43... a3 {[%clk 0:00:04.1]} 44. Qc4 {[%clk 0:00:10.8]}
44... Qa7 {[%clk 0:00:03.3]} 45. Qa2 {[%clk 0:00:09.1]} 45... Qa4 {[%clk
0:00:02.8]} 46. Qxe6 {[%clk 0:00:08.8]} 46... a2 {[%clk 0:00:03]} 47. Qf7+
{[%clk 0:00:08.8]} 47... Bg7 {[%clk 0:00:02.5]} 48. Ng5+ {[%clk 0:00:08.6]}
48... Kh6 {[%clk 0:00:03.1]} 49. Ne6 {[%clk 0:00:07.4]} 49... a1=Q+ {[%clk
0:00:03.6]} 50. Kh2 {[%clk 0:00:04.6]} 50... Qa7 {[%clk 0:00:03.8]} 51. Qf4+
{[%clk 0:00:02.8]} 51... Kh7 {[%clk 0:00:04.4]} 52. Ng5+ {[%clk 0:00:03]} 52...
Kg8 {[%clk 0:00:04.2]} 53. Qf7+ {[%clk 0:00:03.6]} 53... Qxf7 {[%clk 0:00:03.6]}
54. Nxf7 {[%clk 0:00:01.6]} 54... Kxf7 {[%clk 0:00:04.5]} 55. g4 {[%clk
0:00:02.5]} 55... Qxd4 {[%clk 0:00:05.4]} 56. gxh5 {[%clk 0:00:02.7]} 56...
Qxh4+ {[%clk 0:00:05.8]} 57. Kg2 {[%clk 0:00:03.5]} 57... Qxh5 {[%clk
0:00:06.7]} 58. Kf1 {[%clk 0:00:04.4]} 58... Qf5 {[%clk 0:00:07.2]} 59. f3
{[%clk 0:00:05.3]} 59... Qxf3+ {[%clk 0:00:07.3]} 60. Ke1 {[%clk 0:00:06.2]}
60... Ke6 {[%clk 0:00:08.1]} 61. Kd2 {[%clk 0:00:07.1]} 61... Kf5 {[%clk
0:00:09]} 62. Kc1 {[%clk 0:00:07.6]} 62... b3 {[%clk 0:00:09.1]} 63. Kb1 {[%clk
0:00:08]} 63... Qf2 {[%clk 0:00:09.6]} 64. Kc1 {[%clk 0:00:08.6]} 64... Qc2#
{[%clk 0:00:09.9]} 0-1